bitfinex/quotes_SOLUSD_20250814
["timestamp","ask_amount","ask_price","bid_price","bid_amount"]
[1755199898045,36.94,194.3,194.28,5.46228072]
[1755199898247,36.94,194.3,194.28,5.67228072]
[1755199898432,36.94,194.3,194.29,5.46228072]
[1755199898822,36.94,194.3,194.28,5.46228072]
[1755199900249,36.94,194.3,194.29,5.67228072]
[1755199900544,36.94,194.3,194.29,5.35694528]
[1755199900753,36.94,194.3,194.29,10.819226]
[1755199900920,46.93133455,194.36,194.29,10.819226]
[1755199901122,40.38839473,194.35,194.29,5.35694528]
[1755199901329,3.44839473,194.34,194.3,5.46228072]
[1755199901850,36.94,194.35,194.31,5.46228072]
[1755199902149,0.68,194.34,194.25,31.14800514]
[1755199902446,5.14615067,194.32,194.27,5.46228072]
[1755199902642,36.94,194.31,194.27,5.46228072]
[1755199902855,37.62,194.31,194.27,5.46228072]
[1755199903071,37.62,194.31,194.28,5.46228072]
[1755199903250,36.94,194.31,194.3,5.46228072]
[1755199903630,36.94,194.31,194.3,5.67228072]
[1755199903854,0.68,194.37,194.3,5.67228072]
[1755199904058,0.68,194.37,194.3,0.21]
[1755199904251,36.94,194.36,194.33,5.46228072]
[1755199904427,36.94,194.36,194.34,5.46228072]
[1755199904632,0.06,194.38,194.35,5.67228072]
[1755199904847,0.06,194.38,194.37,26.0]
[1755199905036,0.06,194.38,194.35,26.0]
[1755199905367,37.0,194.38,194.33,0.21]
[1755199905651,37.68,194.38,194.34,5.46228072]
[1755199905866,42.82458182,194.38,194.34,5.46228072]
[1755199906973,42.82458182,194.38,194.31,5.35635296]
[1755199906974,42.14458182,194.38,194.33,5.46228072]
[1755199907135,5.46228072,194.36,194.28,0.21]
[1755199907330,43.08228072,194.35,194.26,5.35768354]
[1755199907551,4.13338667,194.34,194.28,5.46228072]
[1755199907756,9.59575852,194.34,194.28,5.46228072]
[1755199908037,6.14228072,194.33,194.26,5.46228072]
[1755199908240,36.94,194.32,194.27,5.46228072]
[1755199908474,36.94,194.32,194.28,5.46228072]
[1755199908773,36.94,194.32,194.27,0.21]
[1755199908774,42.08621106,194.32,194.27,0.21]
[1755199909068,42.76621106,194.32,194.27,5.46228072]
[1755199909632,42.08621106,194.32,194.27,5.46228072]
[1755199909843,0.68,194.31,194.27,5.46228072]
[1755199910137,42.08621106,194.32,194.27,5.46228072]
[1755199910138,0.68,194.3,194.27,5.46228072]
[1755199910361,42.08621106,194.32,194.27,5.46228072]
[1755199910740,0.68,194.31,194.27,5.46228072]
[1755199911259,0.68,194.3,194.25,31.49228072]
[1755199911465,0.68,194.29,194.25,31.49228072]
[1755199911970,0.68,194.28,194.25,0.03]
[1755199912173,0.68,194.27,194.25,0.03]
[1755199912341,40.39951113,194.28,194.25,0.03]
[1755199912541,36.94,194.28,194.25,0.03]
[1755199912760,37.62,194.28,194.25,0.03]
[1755199913276,0.68,194.27,194.25,0.03]
[1755199913447,4.14229399,194.26,194.25,0.03]
[1755199913645,0.68,194.26,194.25,0.03]
[1755199913848,8.61003413,194.26,194.25,0.03]
[1755199914144,9.29003413,194.26,194.25,0.03]
[1755199915269,5.82774014,194.26,194.25,0.03]
[1755199915476,9.29003413,194.26,194.25,0.03]
[1755199915682,14.75231485,194.26,194.25,0.03]
[1755199916287,3.46229399,194.26,194.25,0.03]
[1755199916443,36.94,194.26,194.25,0.03]
[1755199916865,37.62,194.26,194.25,0.03]
[1755199917347,42.76774014,194.26,194.25,0.03]
[1755199917544,46.22554321,194.26,194.25,0.03]
[1755199917862,46.22553292,194.26,194.25,0.03]
[1755199918062,41.07779278,194.26,194.25,0.03]
[1755199918264,46.22553292,194.26,194.25,0.03]
[1755199920544,40.39779278,194.26,194.25,0.03]
[1755199920753,36.94,194.26,194.25,0.03]
[1755199923290,42.75774014,194.26,194.25,0.03]
[1755199923444,46.2155817,194.26,194.25,0.03]
[1755199923861,66.78407799,194.26,194.25,0.03]
[1755199925061,46.2155817,194.26,194.25,0.03]
[1755199925255,41.06784156,194.26,194.25,0.03]
[1755199925459,36.94,194.26,194.25,0.03]
[1755199928051,36.94,194.26,194.25,5.49228072]
[1755199929175,0.73,194.33,194.25,5.70228072]
[1755199929489,36.94,194.32,194.28,5.46228072]
[1755199929857,37.61,194.32,194.28,5.46228072]
[1755199930360,36.94,194.32,194.29,5.46228072]
[1755199930565,36.94,194.32,194.28,5.14718439]
[1755199930566,36.94,194.32,194.3,5.46228072]
[1755199930861,36.94,194.32,194.31,5.46228072]
[1755199931195,0.06,194.33,194.31,5.67228072]
[1755199931353,0.06,194.33,194.28,5.14718439]
[1755199931354,0.06,194.33,194.32,5.46228072]
[1755199932986,0.06,194.33,194.32,10.60843139]
[1755199934070,0.06,194.33,194.32,10.81843139]
[1755199934885,0.06,194.35,194.32,10.81843139]
[1755199934886,0.06,194.35,194.33,15.10621557]
[1755199935067,0.06,194.35,194.34,11.64912354]
[1755199936276,0.06,194.38,194.37,26.0]
[1755199936603,0.06,194.38,194.37,36.81710759]
[1755199939482,0.06,194.38,194.37,38.87519659]
[1755199943500,0.06,194.42,194.37,53.98141216]
[1755199943676,0.06,194.42,194.41,26.0]
[1755199943873,0.06,194.42,194.41,31.67228072]
[1755199944077,0.06,194.42,194.41,36.81604904]
[1755199944304,0.06,194.42,194.41,38.87350304]
[1755199945100,0.06,194.42,194.41,31.46228072]
[1755199945278,0.73,194.42,194.41,26.0]
[1755199945478,0.73,194.42,194.41,31.46228072]
[1755199948186,0.73,194.42,194.41,5.46228072]
[1755199948886,5.87350375,194.42,194.38,26.0]
[1755199949075,0.73,194.42,194.39,5.46228072]
[1755199949499,0.06,194.42,194.41,5.46228072]
[1755199950199,0.73,194.42,194.4,5.46228072]
[1755199950409,0.67,194.41,194.39,5.46228072]
[1755199950615,5.20350488,194.42,194.39,5.46228072]
[1755199950616,0.72,194.4,194.39,5.46228072]
[1755199951203,0.72,194.4,194.32,28.27993545]
[1755199951410,0.72,194.4,194.36,5.46228072]
[1755199951709,0.72,194.4,194.35,5.46228072]
[1755199951910,0.72,194.4,194.32,54.27993545]
[1755199951911,0.72,194.4,194.34,5.46228072]
[1755199952279,5.14429754,194.39,194.34,5.46228072]
[1755199952583,0.72,194.38,194.36,5.46228072]
[1755199952807,0.72,194.39,194.37,5.46228072]
[1755199953104,0.72,194.38,194.35,5.46228072]
[1755199953514,0.72,194.38,194.34,5.46228072]
[1755199953683,0.72,194.38,194.31,0.03]
[1755199953684,5.46228072,194.36,194.31,0.03]
[1755199953883,0.72,194.35,194.31,0.03]
[1755199954477,5.14562107,194.34,194.31,0.03]
[1755199954685,0.72,194.33,194.31,0.03]
[1755199956384,5.14615067,194.32,194.31,0.03]
[1755199956584,11.32843139,194.32,194.31,0.03]
[1755199956814,51.19330445,194.32,194.31,0.03]
[1755199956988,41.10621557,194.3,194.29,0.03]
[1755199957311,50.25336935,194.3,194.29,0.03]
[1755199957684,41.82621557,194.3,194.29,0.03]
[1755199958108,0.72,194.3,194.29,0.03]
[1755199959108,5.86668039,194.3,194.29,0.03]
[1755199960920,0.72,194.3,194.29,0.03]
[1755199961290,0.72,194.32,194.29,8.45715378]
[1755199961618,0.72,194.32,194.31,8.42715378]
[1755199961797,36.92,194.33,194.31,8.42715378]
[1755199962219,0.72,194.32,194.29,8.45715378]
[1755199962520,9.14715378,194.32,194.29,0.03]
[1755199962909,5.14668039,194.3,194.29,0.03]
[1755199963211,0.72,194.3,194.29,0.03]
[1755199963415,5.14618564,194.32,194.29,0.03]
[1755199963617,42.06592936,194.33,194.29,0.03]
[1755199963825,0.72,194.32,194.3,8.42715378]
[1755199964328,36.92,194.33,194.29,0.03]
[1755199964505,0.72,194.38,194.32,8.42715378]
[1755199964892,0.72,194.38,194.32,13.57305723]
[1755199965087,0.72,194.4,194.37,8.42715378]
[1755199965402,0.72,194.4,194.32,5.38590345]
[1755199965403,0.72,194.4,194.38,8.42715378]
[1755199965595,0.72,194.4,194.33,0.24]
[1755199965799,0.72,194.4,194.38,8.42715378]
[1755199965997,0.72,194.4,194.37,8.42715378]
[1755199966312,0.72,194.39,194.37,8.42715378]
[1755199966507,0.06,194.42,194.37,8.42715378]
[1755199966508,0.72,194.38,194.37,8.42715378]
[1755199970442,5.8640416,194.4,194.37,8.42715378]
[1755199970640,0.72,194.39,194.38,8.42715378]
[1755199970823,0.72,194.39,194.37,8.42715378]
[1755199972947,5.1440416,194.4,194.37,8.42715378]
[1755199973120,5.14378607,194.41,194.38,8.42715378]
[1755199973318,5.20354679,194.42,194.38,8.42715378]
[1755199973525,0.72,194.4,194.38,8.42715378]
[1755199973836,0.72,194.39,194.37,8.42715378]
[1755199975115,0.72,194.39,194.38,8.42715378]
[1755199975516,5.86383422,194.41,194.38,8.42715378]
[1755199975826,0.06,194.42,194.4,8.42715378]
[1755199976439,0.78,194.42,194.39,8.42715378]
[1755199976621,0.78,194.42,194.39,5.47000932]
[1755199976822,0.78,194.42,194.4,5.47000932]
[1755199977043,0.06,194.42,194.41,5.47000932]
[1755199977740,0.06,194.42,194.38,0.24]
[1755199977918,0.72,194.41,194.39,5.47000932]
[1755199978119,0.06,194.42,194.37,5.14479356]
[1755199978120,0.06,194.42,194.4,5.47000932]
[1755199978338,0.06,194.42,194.41,5.47000932]
[1755199979632,0.06,194.42,194.37,5.14482687]
[1755199979836,0.06,194.42,194.41,5.47000932]
[1755199980642,0.06,194.42,194.39,5.14405502]
[1755199980821,0.06,194.42,194.41,5.47000932]
[1755199982438,0.74,194.42,194.38,5.14450307]
[1755199982640,0.06,194.42,194.41,5.47000932]
[1755199982855,0.06,194.42,194.41,5.71000932]
[1755199983017,0.06,194.44,194.43,26.0]
[1755199983221,0.06,194.44,194.43,5.65000932]
[1755199983950,0.06,194.44,194.43,21.27054881]
[1755199984324,0.06,194.44,194.43,58.17054881]
[1755199984922,0.06,194.45,194.44,31.14297469]
[1755199985131,0.06,194.45,194.44,36.79298401]
[1755199986843,0.06,194.45,194.44,10.79298401]
[1755199987045,0.06,194.47,194.46,26.0]
[1755199987226,0.06,194.47,194.46,32.16425389]
[1755199989022,0.06,194.47,194.46,37.30669963]
[1755199989852,0.06,194.47,194.46,52.4129152]
[1755199990023,0.06,194.5,194.46,37.30669963]
[1755199990230,0.06,194.5,194.48,10.94001864]
[1755199990550,0.06,194.5,194.48,6.16420101]
[1755199991257,0.06,194.5,194.48,16.77612723]
[1755199992843,0.06,194.5,194.48,16.59612723]
[1755199994941,0.06,194.5,194.48,11.12611791]
[1755199996456,0.06,194.5,194.48,77.92611791]
[1755199998866,0.06,194.51,194.48,16.59612723]
[1755199999074,0.74,194.51,194.5,5.47000932]
[1755199999863,0.06,194.51,194.5,5.47000932]
[1755200000567,0.74,194.51,194.5,5.47000932]
[1755200000938,0.74,194.51,194.5,10.61139749]
[1755200002136,0.06,194.51,194.5,10.61139749]
[1755200003066,0.06,194.54,194.51,41.10621557]
[1755200003247,0.06,194.54,194.51,84.15033727]
[1755200003955,0.06,194.54,194.51,83.97033727]
[1755200004476,0.06,194.54,194.51,74.00524554]
[1755200004876,0.06,194.54,194.51,73.49113316]
[1755200005050,0.74,194.52,194.51,68.35000932]
[1755200005245,0.74,194.52,194.51,36.61113316]
[1755200005446,0.74,194.52,194.51,31.47000932]
[1755200006352,0.74,194.52,194.51,36.61113316]
[1755200007055,0.06,194.52,194.51,73.49113316]
[1755200007856,0.06,194.52,194.51,73.67113316]
[1755200008549,0.06,194.52,194.51,73.49113316]
[1755200008945,0.74,194.52,194.51,73.49113316]
[1755200009548,0.06,194.52,194.51,73.49113316]
[1755200015192,0.75,194.52,194.51,73.49113316]
[1755200015996,0.75,194.52,194.45,66.8]
[1755200016286,0.75,194.52,194.46,36.86]
[1755200016458,0.75,194.52,194.45,42.0027102]
[1755200016662,0.75,194.52,194.5,5.47000932]
[1755200016856,0.75,194.52,194.49,5.47000932]
[1755200017057,0.75,194.52,194.48,5.47000932]
[1755200017257,5.89091702,194.52,194.48,5.47000932]
[1755200017458,0.69,194.51,194.48,5.47000932]
[1755200017677,0.69,194.51,194.49,5.47000932]
[1755200018058,0.06,194.52,194.5,5.47000932]
[1755200018260,0.06,194.52,194.51,5.47000932]
[1755200019154,0.06,194.54,194.53,26.0]
[1755200019359,0.06,194.54,194.53,73.4706046]
[1755200020956,0.75,194.54,194.53,73.4706046]
[1755200021394,0.75,194.54,194.53,36.6106046]
[1755200022089,0.06,194.54,194.53,36.6106046]
[1755200022273,0.06,194.54,194.53,73.98466412]
[1755200022481,0.06,194.55,194.53,89.09087969]
[1755200022677,0.06,194.57,194.56,26.0]
[1755200022867,0.1,194.58,194.56,68.84398958]
[1755200023203,0.75,194.64,194.59,26.0]
[1755200023374,0.06,194.64,194.61,10.94001864]
[1755200023572,0.06,194.64,194.61,47.80001864]
[1755200023991,0.06,194.64,194.63,26.0]
[1755200024169,0.06,194.64,194.63,68.33000932]
[1755200024368,0.06,194.64,194.63,62.86]
[1755200024581,0.06,194.64,194.63,68.33000932]
[1755200025066,0.06,194.64,194.63,73.46796338]
[1755200025268,0.75,194.64,194.63,31.47000932]
[1755200026902,0.75,194.64,194.63,36.60796338]
[1755200027993,0.75,194.64,194.63,10.60796338]
[1755200030190,0.06,194.64,194.63,73.44796338]
[1755200032798,0.06,194.64,194.63,47.44796338]
[1755200032986,0.06,194.68,194.67,26.0]
[1755200033187,0.06,194.68,194.67,68.31000932]
[1755200033581,0.75,194.68,194.67,68.31000932]
[1755200034887,0.06,194.68,194.67,73.44690766]
[1755200036294,0.75,194.68,194.67,73.44690766]
[1755200036908,0.06,194.68,194.67,73.44690766]
[1755200039302,0.06,194.68,194.67,75.50171966]
[1755200041905,0.71,194.68,194.67,75.50171966]
[1755200042299,0.71,194.68,194.67,70.36482132]
[1755200042615,0.71,194.68,194.67,33.52482132]
[1755200042913,0.06,194.68,194.67,70.36482132]
[1755200043282,0.06,194.7,194.67,90.78793523]
[1755200043516,0.06,194.7,194.69,5.47000932]
[1755200043702,0.06,194.7,194.69,42.31000932]
[1755200044721,0.06,194.7,194.69,44.36461032]
[1755200047721,0.06,194.7,194.69,49.50098096]
[1755200052215,0.06,194.7,194.69,44.03097164]
[1755200052505,0.71,194.7,194.69,49.50098096]
[1755200052711,0.06,194.7,194.69,44.03097164]
[1755200052897,0.71,194.7,194.69,49.50098096]
[1755200053701,0.71,194.7,194.69,2.054601]
[1755200053903,0.71,194.7,194.68,5.47000932]
[1755200054118,0.71,194.7,194.69,31.47000932]
[1755200054628,0.71,194.7,194.67,5.47000932]
[1755200054839,0.71,194.7,194.66,5.47000932]
[1755200055008,0.71,194.7,194.67,5.47000932]
[1755200055531,0.06,194.7,194.69,5.47000932]
[1755200056120,0.71,194.7,194.69,5.47000932]
[1755200057131,0.71,194.7,194.69,10.60637996]
[1755200059813,0.06,194.7,194.69,10.60637996]
[1755200060010,0.06,194.7,194.69,36.60637996]
[1755200061811,0.06,194.7,194.69,31.13637064]
[1755200062011,0.06,194.7,194.69,36.60637996]
[1755200062210,0.71,194.7,194.69,36.60637996]
[1755200063322,0.06,194.7,194.69,36.60637996]
[1755200064846,0.71,194.7,194.69,36.60637996]
[1755200067848,0.06,194.7,194.69,36.60637996]
[1755200068730,0.71,194.7,194.69,36.60637996]
[1755200072046,0.71,194.7,194.68,0.03]
[1755200072251,0.06,194.7,194.69,5.47000932]
[1755200073555,0.06,194.7,194.69,42.27000932]
[1755200073840,0.74,194.7,194.69,36.8]
[1755200074228,0.74,194.7,194.68,10.636584]
[1755200074429,0.74,194.7,194.69,5.47000932]
[1755200075837,0.74,194.7,194.68,0.03]
[1755200076050,0.68,194.69,194.68,31.50000932]
[1755200076532,0.68,194.69,194.68,36.63664379]
[1755200076728,0.06,194.7,194.68,36.63664379]
[1755200076945,0.74,194.7,194.68,36.63664379]
[1755200077230,0.06,194.7,194.68,36.63664379]
[1755200077442,0.68,194.69,194.68,36.63664379]
[1755200080153,0.68,194.69,194.68,26.03]
[1755200080336,0.68,194.69,194.68,0.03]
[1755200080537,6.15000932,194.69,194.68,0.03]
[1755200080744,0.68,194.69,194.68,0.03]
[1755200084867,0.06,194.7,194.68,0.03]
[1755200085050,0.06,194.7,194.69,5.47000932]
[1755200086068,0.74,194.7,194.68,5.50000932]
[1755200086266,0.74,194.7,194.68,0.03]
[1755200091476,5.87612895,194.7,194.68,0.03]
[1755200091660,0.74,194.7,194.68,0.03]
[1755200091860,0.06,194.7,194.68,0.03]
[1755200092084,0.68,194.69,194.68,0.03]
[1755200101383,0.06,194.7,194.68,0.03]
[1755200101889,0.06,194.7,194.69,5.47000932]
[1755200102187,0.06,194.7,194.68,0.03]
[1755200102370,0.06,194.7,194.68,5.50000932]
[1755200102576,0.06,194.7,194.68,0.03]
[1755200103081,0.72,194.69,194.68,0.03]
[1755200103277,0.06,194.7,194.68,0.03]
[1755200103481,0.06,194.7,194.68,5.50000932]
[1755200103679,0.72,194.69,194.68,5.50000932]
[1755200103870,0.72,194.69,194.68,0.03]
[1755200104863,0.06,194.7,194.68,5.68000932]
[1755200105072,0.06,194.7,194.69,5.47000932]
[1755200105376,0.06,194.7,194.69,5.65000932]
[1755200106092,0.06,194.7,194.69,10.78637996]
[1755200106389,0.06,194.72,194.71,26.0]
[1755200106572,0.06,194.72,194.71,31.65000932]
[1755200108082,0.06,194.72,194.71,36.78585236]
[1755200108570,0.06,194.72,194.71,31.31584304]
[1755200108773,0.06,194.72,194.71,36.78585236]
[1755200110170,0.06,194.72,194.71,38.84013636]
[1755200110374,0.06,194.72,194.71,75.60013636]
[1755200111490,0.06,194.72,194.71,69.95012704]
[1755200111796,0.06,194.72,194.68,13.38477856]
[1755200111797,0.78,194.72,194.69,5.47000932]
[1755200112469,0.72,194.71,194.7,5.47000932]
[1755200112675,0.06,194.72,194.7,5.47000932]
[1755200112995,0.78,194.72,194.71,5.47000932]
[1755200114091,0.78,194.72,194.7,10.60586542]
[1755200114277,0.72,194.71,194.7,10.60586542]
[1755200114598,0.06,194.72,194.7,10.60586542]
[1755200114893,0.06,194.72,194.71,10.60585236]
[1755200115477,0.06,194.72,194.68,39.024707]
[1755200115478,0.78,194.72,194.68,36.79]
[1755200115697,0.72,194.71,194.7,5.47000932]
[1755200115874,0.72,194.71,194.68,47.39657541]
[1755200117078,0.72,194.7,194.68,47.39657541]
[1755200117274,0.72,194.7,194.68,10.63657541]
[1755200117483,0.72,194.69,194.68,10.63657541]
[1755200117781,6.19000932,194.69,194.65,0.03]
[1755200118098,31.47000932,194.66,194.64,0.03]
[1755200118276,6.19000932,194.65,194.64,0.03]
[1755200118474,21.29622489,194.65,194.64,0.03]
[1755200118673,6.19000932,194.65,194.64,0.03]
[1755200119081,0.72,194.65,194.64,0.03]
[1755200119675,0.72,194.68,194.64,5.50000932]
[1755200119902,0.72,194.67,194.64,5.50000932]
[1755200120082,3.45260004,194.69,194.64,5.50000932]
[1755200120283,0.72,194.66,194.64,0.03]
[1755200120498,0.72,194.66,194.65,0.03]
[1755200121889,0.72,194.69,194.65,5.50000932]
[1755200122194,0.78,194.71,194.68,5.47000932]
[1755200122406,0.78,194.71,194.69,5.47000932]
[1755200122587,0.72,194.7,194.69,5.47000932]
[1755200123696,0.06,194.71,194.69,10.8463186]
[1755200123906,0.06,194.71,194.7,5.71000932]
[1755200124083,0.06,194.71,194.7,7.76450432]
[1755200124590,0.06,194.71,194.7,5.47000932]
[1755200124984,0.06,194.71,194.7,5.13610683]
[1755200125190,0.06,194.71,194.7,10.60611615]
[1755200129310,0.06,194.71,194.7,5.13610683]
[1755200129612,0.06,194.71,194.7,10.60611615]
[1755200129813,0.78,194.71,194.7,5.47000932]
[1755200130521,0.78,194.71,194.66,5.47000932]
[1755200130684,0.78,194.71,194.65,0.03]
[1755200130685,6.25000932,194.71,194.65,0.03]
[1755200130887,9.70132276,194.71,194.65,0.03]
[1755200131088,0.69,194.7,194.65,0.03]
[1755200131283,0.69,194.7,194.65,5.50000932]
[1755200131490,0.69,194.69,194.65,0.03]
[1755200131791,3.51131344,194.71,194.65,0.03]
[1755200131792,0.69,194.68,194.65,0.03]
[1755200132022,0.69,194.67,194.66,5.47000932]
[1755200132194,0.69,194.67,194.65,0.03]
[1755200132396,0.69,194.67,194.65,5.50000932]
[1755200133803,0.69,194.66,194.65,0.03]
[1755200134193,21.26622489,194.66,194.64,0.03]
[1755200134392,5.47000932,194.65,194.64,0.03]
[1755200134592,0.69,194.65,194.64,0.03]
[1755200134819,0.69,194.68,194.64,13.56085463]
[1755200135021,0.69,194.68,194.67,8.39316454]
[1755200135197,36.82,194.71,194.67,8.39316454]
[1755200135512,36.82,194.71,194.64,0.03]
[1755200135513,0.69,194.7,194.68,8.39316454]
[1755200135712,0.69,194.69,194.65,5.13742614]
[1755200135905,0.06,194.71,194.68,8.39316454]
[1755200136111,0.06,194.71,194.7,8.39316454]
[1755200136505,0.06,194.71,194.68,26.0]
[1755200136712,0.06,194.71,194.7,8.39316454]
[1755200137317,0.06,194.71,194.7,13.52927137]
[1755200137522,0.75,194.71,194.7,13.52927137]
[1755200137822,0.06,194.71,194.7,13.52927137]
[1755200138223,0.75,194.71,194.7,13.52927137]
[1755200138400,0.75,194.71,194.7,8.39316454]
[1755200138600,0.75,194.71,194.69,8.39316454]
[1755200138802,0.69,194.7,194.69,8.39316454]
[1755200140597,0.69,194.7,194.66,5.13697395]
[1755200140802,0.69,194.69,194.68,8.39316454]
[1755200141932,0.69,194.69,194.67,8.39316454]
[1755200142132,0.69,194.68,194.67,8.39316454]
[1755200143918,0.75,194.71,194.68,5.13663447]
[1755200144223,0.75,194.71,194.69,8.39316454]
[1755200144419,0.69,194.7,194.69,8.39316454]
[1755200145620,0.69,194.7,194.68,8.39316454]
[1755200146623,0.06,194.71,194.69,8.39316454]
[1755200146806,0.06,194.71,194.7,8.39316454]
[1755200147514,0.75,194.71,194.66,5.13709784]
[1755200147706,0.69,194.7,194.68,8.39316454]
[1755200151109,0.06,194.71,194.68,13.52979264]
[1755200151326,0.75,194.71,194.68,8.39316454]
[1755200151518,0.75,194.71,194.69,8.39316454]
[1755200152621,0.06,194.71,194.69,8.39316454]
[1755200152827,0.75,194.71,194.69,8.39316454]
[1755200153029,0.75,194.71,194.68,8.39316454]
[1755200153521,0.06,194.7,194.68,8.39316454]
[1755200155031,0.75,194.7,194.68,8.39316454]
[1755200155736,0.06,194.7,194.68,8.39316454]
[1755200156722,0.06,194.7,194.68,5.45350202]
[1755200156915,0.75,194.7,194.68,5.45350202]
[1755200157428,0.75,194.7,194.67,5.1368292]
[1755200157733,0.06,194.7,194.68,5.45350202]
[1755200158527,0.06,194.7,194.69,5.45350202]
[1755200160057,0.06,194.7,194.69,10.58987266]
[1755200160213,0.06,194.7,194.69,10.85987266]
[1755200160934,0.06,194.7,194.69,5.45350202]
[1755200161743,0.06,194.7,194.69,10.58987266]
[1755200161934,0.06,194.7,194.69,10.85987266]
[1755200162220,0.06,194.7,194.69,10.58987266]
[1755200162435,0.78,194.7,194.65,26.03]
[1755200162629,0.72,194.69,194.65,5.48350202]
[1755200162832,0.72,194.69,194.65,10.62090115]
[1755200163157,0.72,194.69,194.65,0.03]
[1755200163844,5.85640559,194.69,194.65,0.03]
[1755200164624,0.72,194.69,194.65,0.03]
[1755200164944,0.06,194.7,194.66,5.45350202]
[1755200165126,3.4554762,194.69,194.66,5.45350202]
[1755200165330,3.45563197,194.68,194.66,5.45350202]
[1755200165634,5.19614581,194.7,194.65,0.03]
[1755200165834,3.45563197,194.69,194.65,0.03]
[1755200166032,3.45563197,194.68,194.65,0.03]
[1755200166235,5.13637655,194.69,194.65,0.03]
[1755200166439,3.45561755,194.68,194.65,0.03]
[1755200166632,5.13637655,194.69,194.65,5.48350202]
[1755200166825,3.4558886,194.68,194.65,5.48350202]
[1755200167124,0.72,194.67,194.65,0.03]
[1755200167756,0.72,194.67,194.65,5.48350202]
[1755200168631,0.72,194.67,194.65,0.03]
[1755200169451,0.72,194.67,194.65,5.48350202]
[1755200169835,0.72,194.67,194.65,0.03]
[1755200171455,0.72,194.67,194.65,5.48350202]
[1755200171637,0.72,194.67,194.65,0.03]
[1755200171933,4.17667624,194.66,194.65,0.03]
[1755200172138,8.59383847,194.66,194.65,0.03]
[1755200172429,3.45667624,194.66,194.65,5.48350202]
[1755200172651,0.72,194.69,194.65,5.48350202]
[1755200172949,4.17611325,194.68,194.66,5.45350202]
[1755200173150,3.45611325,194.67,194.66,5.45350202]
[1755200177536,0.72,194.68,194.66,5.45350202]
[1755200177859,0.72,194.68,194.67,5.45350202]
[1755200178044,4.17578741,194.68,194.67,5.45350202]
[1755200178244,4.17578741,194.68,194.66,5.45350202]
[1755200178444,3.45578741,194.67,194.66,5.45350202]
[1755200178851,3.45578741,194.67,194.65,0.03]
[1755200178852,26.0,194.66,194.64,0.03]
[1755200179044,46.24390566,194.64,194.63,0.03]
[1755200179352,55.87319509,194.64,194.63,0.03]
[1755200179530,55.87319509,194.64,194.62,0.03]
[1755200179733,24.735505,194.63,194.62,0.03]
[1755200180536,19.28200298,194.63,194.62,0.03]
[1755200180742,24.735505,194.63,194.62,0.03]
[1755200181077,19.28200298,194.63,194.62,0.03]
[1755200181238,29.87345906,194.63,194.62,0.03]
[1755200182947,24.41995704,194.63,194.62,0.03]
[1755200183854,29.87345906,194.63,194.62,0.03]
[1755200184344,3.45578741,194.63,194.62,5.48350202]
[1755200184647,37.14,194.63,194.62,0.03]
[1755200185055,40.58901412,194.63,194.62,0.03]
[1755200185263,37.14,194.63,194.62,0.03]
[1755200185453,40.58861178,194.63,194.62,0.03]
[1755200186135,37.14,194.63,194.62,0.03]
[1755200189883,0.06,194.67,194.62,10.9816422]